bitfinex/quotes_ETHUSD_20220112
["timestamp","ask_amount","ask_price","bid_price","bid_amount"]
[1641997494680,0.00113685,3362.0,3361.9,3.50565673]
[1641997495284,0.00113685,3362.0,3361.9,2.24080589]
[1641997495681,0.00113685,3362.0,3361.9,4.84080589]
[1641997496114,0.00113685,3362.0,3361.9,2.24080589]
[1641997497723,0.00113685,3362.0,3361.9,0.05565673]
[1641997498824,1.09190638,3362.1,3361.9,0.05565673]
[1641997500076,1.83538868,3362.1,3361.9,0.05565673]
[1641997500479,4.05592959,3362.1,3361.9,0.05565673]
[1641997501075,1.83538868,3362.1,3361.9,0.05565673]
[1641997502274,1.83538868,3362.1,3361.8,0.64916065]
[1641997502977,4.83538868,3362.1,3361.9,0.74333]
[1641997503376,4.4869123,3362.1,3361.9,2.93398839]
[1641997503626,3.0,3362.1,3361.9,2.93398839]
[1641997503826,6.5,3362.1,3361.9,2.93398839]
[1641997504230,3.0,3362.1,3361.9,2.93398839]
[1641997505032,3.0,3362.1,3361.9,0.74333]
[1641997506136,3.0,3362.1,3361.9,2.97065608]
[1641997507473,0.89324528,3362.6,3362.3,0.74327]
[1641997507871,3.9982,3363.2,3362.4,7.35]
[1641997508072,3.5,3363.0,3362.4,7.35]
[1641997508275,0.00341054,3363.1,3362.4,7.35]
[1641997508473,0.00341054,3363.1,3362.5,2.31421615]
[1641997508671,2.39159806,3364.5,3363.6,1.75233883]
[1641997508672,1.46064798,3364.2,3363.6,1.75233883]
[1641997508872,1.62430467,3364.5,3363.6,1.75233883]
[1641997509073,3.5,3364.4,3363.6,1.75233883]
[1641997509373,1.49293109,3364.3,3363.6,1.75233883]
[1641997509573,1.49293109,3364.3,3363.6,2.49538883]
[1641997509773,0.00625266,3364.2,3363.6,2.49538883]
[1641997510175,0.00568424,3364.1,3364.0,2.13200632]
[1641997510974,0.00568424,3364.1,3364.0,2.87500632]
[1641997512423,1.2013346,3364.1,3364.0,0.743]
[1641997512624,1.2013346,3364.1,3363.8,0.74313]
[1641997512925,1.49135582,3364.0,3363.8,0.74313]
[1641997513326,0.00454739,3363.9,3363.8,0.74313]
[1641997513724,0.00454739,3363.9,3363.8,3.0147096]
[1641997514529,0.00454739,3363.9,3363.8,0.74313]
[1641997514984,0.74771739,3363.9,3363.6,1.48619]
[1641997515286,0.00397897,3363.8,3363.6,1.48619]
[1641997515684,0.00341054,3363.7,3363.6,1.48619]
[1641997516786,0.00341054,3363.7,3363.6,0.59314946]
[1641997517992,0.00341054,3363.7,3363.5,1.91320871]
[1641997518394,0.00284212,3363.6,3363.5,1.91320871]
[1641997519435,0.00284212,3363.6,3363.3,1.48635]
[1641997519748,0.7434,3363.3,3362.6,0.00284211]
[1641997519936,1.526324,3363.4,3362.6,0.00284211]
[1641997520235,0.00113685,3363.3,3362.4,0.00397896]
[1641997520437,0.04744607,3363.2,3362.4,0.00397896]
[1641997520635,1.52447469,3362.9,3362.6,1.94922306]
[1641997520840,1.54486672,3362.8,3362.4,0.00397896]
[1641997521043,1.54486672,3362.8,3362.7,0.00227369]
[1641997521044,0.74349,3362.8,3362.7,0.00227369]
[1641997521241,3.78810039,3362.9,3362.4,0.00397896]
[1641997521937,0.7435229,3362.7,3362.4,0.00397896]
[1641997522136,0.74353,3362.8,3362.4,0.00397896]
[1641997522982,0.74347,3362.7,3362.4,0.74741896]
[1641997523182,0.67770438,3362.7,3362.4,0.68841896]
[1641997523380,0.00113685,3362.6,3362.4,0.68841896]
[1641997523779,0.00227369,3362.8,3362.4,0.68841896]
[1641997524183,0.7767257,3362.9,3362.4,0.68841896]
[1641997524184,0.00170527,3362.7,3362.4,0.68841896]
[1641997524581,0.00113685,3362.6,3362.4,0.68841896]
[1641997524982,0.74331,3362.8,3362.4,0.68841896]
[1641997524983,0.00170527,3362.7,3362.4,0.68841896]
[1641997525383,0.00113685,3362.6,3362.4,0.68841896]
[1641997525982,0.00113685,3362.6,3362.3,3.73848339]
[1641997526424,1.4869,3362.5,3362.3,3.73848339]
[1641997526821,0.74338,3362.5,3362.3,3.73848339]
[1641997527019,0.74338,3362.5,3362.4,0.5]
[1641997527020,0.73700235,3362.5,3362.4,0.5]
[1641997527221,0.00113685,3362.6,3362.4,0.5]
[1641997528424,0.74327,3362.9,3362.5,2.6]
[1641997528626,0.74327,3362.9,3362.4,0.5]
[1641997528828,0.00113684,3362.8,3362.7,0.5]
[1641997530376,0.00113684,3362.8,3362.7,3.79329]
[1641997530574,0.00113684,3362.8,3362.7,4.79329]
[1641997531175,3.00113684,3362.8,3362.7,4.79329]
[1641997531775,3.00113684,3362.8,3362.7,2.24329]
[1641997532177,3.00113684,3362.8,3362.7,2.21754308]
[1641997532579,3.30113684,3362.8,3362.7,2.21754308]
[1641997532782,3.00113684,3362.8,3362.7,2.21754308]
[1641997533181,0.89315752,3363.0,3362.8,5.85]
[1641997533380,3.1563,3363.6,3363.1,0.74309]
[1641997533620,3.6746,3363.7,3363.5,1.29053375]
[1641997533819,1.4862478,3363.8,3363.6,2.25878156]
[1641997534024,0.6,3363.7,3363.6,2.25878156]
[1641997534220,0.60511581,3363.7,3363.6,2.25878156]
[1641997534626,1.34819771,3363.7,3363.6,2.25878156]
[1641997534828,0.60511581,3363.7,3363.6,2.25878156]
[1641997535027,0.30511581,3363.7,3363.6,2.25878156]
[1641997535324,0.00511581,3363.7,3363.6,1.36577824]
[1641997535526,0.30511581,3363.7,3363.6,1.36577824]
[1641997535933,0.00511581,3363.7,3363.6,1.36577824]
[1641997536127,0.00511581,3363.7,3363.6,4.36577824]
[1641997536827,0.00511581,3363.7,3363.6,5.10879824]
[1641997537025,0.00511581,3363.7,3363.6,2.10879824]
[1641997537475,0.00511581,3363.7,3363.6,1.21581501]
[1641997538077,0.00511581,3363.7,3363.6,5.21581501]
[1641997538775,0.00511581,3363.7,3363.6,2.21581501]
[1641997539675,0.00511581,3363.7,3363.6,1.21581501]
[1641997539874,0.00511581,3363.7,3363.6,2.21581501]
[1641997540580,0.00511581,3363.7,3362.5,4.45862]
[1641997540876,0.00511581,3363.7,3361.9,5.0677]
[1641997540877,0.06389348,3363.4,3362.0,1.1988]
[1641997541126,1.3868202,3363.2,3362.0,1.1988]
[1641997541328,1.4867785,3363.1,3362.0,1.1988]
[1641997541526,1.48848377,3363.1,3363.0,1.7629689]
[1641997541730,1.4867785,3363.1,3363.0,1.7629689]
[1641997542929,1.7866266,3363.2,3363.0,1.7629689]
[1641997543130,0.74331,3363.2,3363.0,1.7629689]
[1641997543830,2.22993,3363.5,3363.0,0.86971544]
[1641997543831,1.486228,3363.5,3363.0,0.86971544]
[1641997544034,1.486228,3363.5,3363.4,1.24228288]
[1641997544637,1.786228,3363.5,3363.4,1.24228288]
[1641997546091,1.486228,3363.5,3363.4,1.24228288]
[1641997546297,1.4860638,3364.1,3363.6,0.743]
[1641997546495,1.48619,3364.0,3363.8,1.91096607]
[1641997547901,1.4862258,3363.9,3363.8,2.65404607]
[1641997548501,2.2292828,3364.0,3363.8,2.65404607]
[1641997549728,2.5292828,3364.0,3363.8,2.65404607]
[1641997550125,2.5292828,3364.0,3363.8,1.76103478]
[1641997550337,3.6317,3364.8,3364.4,7.430319]
[1641997550533,0.3,3364.8,3364.5,0.00742497]
[1641997550728,0.3,3365.1,3364.4,7.430319]
[1641997550928,1.0,3365.2,3364.4,7.430319]
[1641997551129,0.3,3365.2,3364.6,1.48606]
[1641997551333,0.362,3365.5,3364.6,1.48606]
[1641997551532,0.362,3365.5,3365.4,2.06179062]
[1641997551927,6.562,3365.5,3365.4,2.06179062]
[1641997552370,7.562,3365.5,3365.0,0.742944]
[1641997552575,0.07087471,3365.3,3365.0,1.4859]
[1641997552777,0.3,3365.3,3365.0,1.4859]
[1641997553380,0.00227369,3365.4,3365.0,1.4859]
[1641997553880,0.00170527,3365.3,3365.1,2.27949738]
[1641997554282,3.30113685,3365.2,3365.1,2.27949738]
[1641997554485,2.70113685,3365.2,3365.1,1.386632]
[1641997554782,1.80113685,3365.2,3365.1,1.386632]
[1641997554986,1.80113685,3365.2,3365.0,1.4859]
[1641997554987,6.10113685,3365.2,3365.0,1.4859]
[1641997555180,6.10113685,3365.2,3364.7,0.74306]
[1641997555379,1.12076601,3365.1,3364.7,0.74306]
[1641997555581,1.12076601,3365.1,3364.8,0.0022737]
[1641997555880,0.04833218,3365.0,3364.8,0.0022737]
[1641997556134,1.12076601,3365.1,3364.6,1.48609]
[1641997556135,4.58565008,3364.8,3364.7,1.8441994]
[1641997556328,1.12076601,3365.1,3364.7,1.8441994]
[1641997556529,0.00113684,3365.0,3364.7,1.8441994]
[1641997557529,0.07213517,3364.9,3364.7,1.8441994]
[1641997557730,1.18282904,3365.5,3364.8,0.74303]
[1641997557933,1.18282904,3365.5,3364.7,1.8441994]
[1641997557934,0.362,3365.5,3364.7,3.0371994]
[1641997558130,0.362,3365.5,3364.9,1.48568]
[1641997558131,0.00113686,3365.2,3364.9,1.48568]
[1641997558931,0.03924021,3365.1,3365.0,0.74284]
[1641997559130,0.03924021,3365.1,3364.9,1.48568]
[1641997559331,0.03924021,3365.1,3364.8,0.00113684]
[1641997559536,0.03924021,3365.1,3364.6,0.59550656]
[1641997559537,5.0,3365.0,3364.3,3.64098626]
[1641997559734,0.05407389,3364.9,3363.2,2.97208]
[1641997559973,6.04422686,3365.0,3364.4,0.00227369]
[1641997560272,5.30113686,3365.0,3364.6,1.48609]
[1641997560674,1.88375883,3364.9,3364.6,1.48609]
[1641997561475,5.30113686,3365.0,3364.6,1.48609]
[1641997562079,5.30113686,3365.0,3364.4,0.00227369]
[1641997562080,1.362,3364.9,3364.4,0.00227369]
[1641997562280,0.4493217,3364.9,3364.4,0.00227369]
[1641997562481,0.99949921,3364.6,3364.2,0.00341054]
[1641997562682,0.3,3364.5,3364.1,0.5967734]
[1641997563080,1.12075422,3364.4,3364.1,0.5967734]
[1641997563644,1.41961737,3364.4,3364.1,0.5967734]
[1641997564237,0.05009576,3364.3,3364.1,0.5967734]
[1641997564635,1.41961737,3364.4,3364.1,0.5967734]
[1641997564836,0.07750943,3364.3,3364.1,0.5967734]
[1641997565043,1.41961737,3364.4,3363.8,1.48637]
[1641997565241,0.04959038,3364.3,3363.6,1.2069]
[1641997565441,0.04959038,3364.3,3363.9,0.00170527]
[1641997565642,1.41961737,3364.4,3363.9,0.00170527]
[1641997566046,1.41961737,3364.4,3363.7,2.33190645]
[1641997566242,0.07666156,3364.2,3363.7,1.44066422]
[1641997566443,4.65,3364.3,3363.8,0.74317]
[1641997566444,0.0022737,3364.3,3363.8,0.74317]
[1641997566644,0.00113685,3364.1,3363.7,1.44066422]
[1641997566843,1.41961737,3364.4,3363.7,1.44066422]
[1641997566844,0.00170527,3364.2,3363.7,1.44066422]
[1641997567046,0.0022737,3364.3,3363.7,1.44066422]
[1641997567243,0.00113685,3364.1,3363.7,1.44066422]
[1641997567474,0.00170527,3364.2,3363.7,1.44066422]
[1641997567677,0.3,3364.2,3363.8,0.74319]
[1641997567874,1.41961737,3364.4,3363.8,0.74319]
[1641997567875,0.00113685,3364.1,3363.8,0.74319]
[1641997568279,0.0022737,3364.3,3363.8,0.74319]
[1641997568677,1.41961737,3364.4,3363.7,1.44066422]
[1641997568678,0.79137445,3364.2,3363.7,1.44066422]
[1641997569078,0.00113685,3364.1,3363.7,1.44066422]
[1641997569378,0.89301129,3363.5,3363.4,1.0]
[1641997569579,0.89301129,3363.5,3363.4,0.4736]
[1641997569981,1.19301129,3363.5,3363.4,0.4736]
[1641997570189,1.19301129,3363.5,3363.4,1.1936]
[1641997572838,4.19301129,3363.5,3363.4,1.1936]
[1641997573838,4.19301129,3363.5,3363.4,0.4736]
[1641997575487,4.19301129,3363.5,3363.1,1.48649]
[1641997575681,3.3,3363.5,3363.1,1.48649]
[1641997575882,3.3,3363.5,3363.2,0.00397896]
[1641997575883,2.70250503,3363.4,3363.2,0.00397896]
[1641997576084,9.53353552,3363.3,3363.2,0.00397896]
[1641997576282,9.53353552,3363.3,3362.2,7.6428]
[1641997576283,2.21326803,3362.9,3362.7,0.00682108]
[1641997576482,2.21326803,3362.9,3362.4,2.13584019]
[1641997576681,1.92108605,3362.8,3362.5,0.00795793]
[1641997576881,2.51326803,3362.9,3362.5,0.00795793]
[1641997577081,0.04098946,3362.8,3362.5,0.00795793]
[1641997577283,1.95163336,3362.8,3362.5,0.00795793]
[1641997577482,1.10072723,3362.5,3362.3,0.00909477]
[1641997577884,1.40072723,3362.5,3362.3,0.00909477]
[1641997578282,1.40072723,3362.5,3362.3,2.31169066]
[1641997578483,0.3,3362.5,3362.3,3.05519066]
[1641997578740,1.1777,3363.2,3362.4,0.00852635]
[1641997578939,0.31903388,3363.5,3362.6,1.48669]
[1641997579339,0.31903388,3363.5,3362.7,0.00682108]
[1641997579541,0.31903388,3363.5,3363.4,1.88265245]
[1641997579739,3.21903388,3363.5,3363.4,1.88265245]
[1641997579940,0.31903388,3363.5,3363.4,1.88549457]
[1641997580542,3.41903388,3363.5,3363.4,1.88549457]
[1641997580940,3.71903388,3363.5,3363.4,0.99213491]
[1641997581142,0.61903388,3363.5,3363.4,0.99213491]
[1641997581342,0.31903388,3363.5,3363.4,0.99213491]
[1641997581742,3.31903388,3363.5,3363.4,0.99213491]
[1641997582147,3.61903388,3363.5,3363.4,0.99213491]
[1641997583286,3.31903388,3363.5,3363.4,0.99213491]
[1641997583885,3.31903388,3363.5,3363.4,0.00284212]
[1641997584182,3.31903388,3363.5,3363.3,0.00341054]
[1641997584385,3.61903388,3363.5,3363.3,0.00341054]
[1641997584584,3.6,3363.4,3363.1,1.34006981]
[1641997584785,3.63843865,3363.4,3363.1,1.34006981]
[1641997585185,3.6,3363.4,3363.2,0.74332]
[1641997585485,5.48588297,3363.4,3363.2,0.74332]
[1641997585686,5.48588297,3363.4,3362.7,1.48684]
[1641997585891,1.47610942,3363.0,3362.7,1.48684]
[1641997586124,0.3,3362.9,3362.8,0.00284212]
[1641997586727,1.47610942,3363.0,3362.2,0.00625266]
[1641997587133,2.10076037,3362.8,3362.3,2.2062386]
[1641997587325,2.10076037,3362.8,3362.2,1.09771166]
[1641997587529,2.10076037,3362.8,3362.4,1.49202581]
[1641997587730,2.10076037,3362.8,3362.4,1.48691]
[1641997587929,2.10076037,3362.8,3362.5,0.00454739]
[1641997588130,2.40076037,3362.8,3362.5,0.00454739]
[1641997588435,0.362,3362.7,3362.5,0.00454739]
[1641997588630,0.99495182,3362.5,3362.1,0.4736]
[1641997588831,1.68480516,3362.2,3362.1,0.4736]
[1641997589229,1.68480516,3362.2,3362.1,0.00227369]
[1641997589230,3.29557911,3362.2,3362.1,0.00227369]
[1641997589630,0.3,3362.1,3361.7,0.00454738]
[1641997590473,0.05721499,3362.0,3361.7,0.00454738]
[1641997590679,0.3,3362.1,3361.7,0.00454738]
[1641997590883,0.05200433,3362.0,3361.1,0.4736]
[1641997591092,0.36370527,3362.0,3361.1,0.4736]
[1641997591280,0.99995182,3361.7,3361.2,0.00284212]
[1641997591485,0.3,3361.7,3361.2,0.00284212]
[1641997591785,5.53471872,3361.3,3361.2,0.00284212]
[1641997591987,2.58471872,3361.3,3361.2,0.00284212]
[1641997592185,2.88471872,3361.3,3361.2,0.00284212]
[1641997592382,0.6,3361.3,3361.2,0.00284212]
[1641997592585,3.0,3361.3,3361.2,0.00284212]
[1641997592985,0.00113684,3361.9,3361.3,7.35]
[1641997593386,0.00113684,3361.9,3361.7,1.74726059]
[1641997593854,0.00113684,3361.9,3361.8,6.59557127]
[1641997594050,0.00113684,3361.9,3361.8,7.59557127]
[1641997595051,5.0,3363.0,3362.2,0.7433]
[1641997595252,5.0,3363.0,3362.7,0.74325]
[1641997595455,0.00568424,3362.9,3362.7,1.48652]
[1641997595850,5.0,3363.0,3362.7,1.48652]
[1641997595851,0.00511581,3362.8,3362.7,1.48652]
[1641997596057,0.00511581,3362.8,3362.7,4.06485242]
[1641997596861,5.0,3363.0,3362.7,4.06485242]
[1641997596862,5.0,3363.0,3362.8,7.35]
[1641997597062,5.0,3363.0,3362.9,8.35]
[1641997597063,3.6976,3363.0,3362.9,8.35]
[1641997597261,3.2936,3363.0,3362.9,8.35]
[1641997597489,3.6115,3364.7,3362.9,8.35]
[1641997597691,3.6115,3364.7,3363.6,0.74307]
[1641997597893,0.00909478,3364.6,3363.8,6.0]
[1641997598297,0.00852635,3364.5,3363.8,6.0]
[1641997598695,2.26188411,3364.5,3364.0,1.1237754]
[1641997599197,2.26188411,3364.5,3363.8,6.0]
[1641997599198,2.86188411,3364.5,3364.1,0.00170527]
[1641997599396,0.04262232,3364.4,3364.1,0.00170527]
[1641997599596,0.04262232,3364.4,3363.9,0.00284212]
[1641997599803,2.86188411,3364.5,3363.9,0.00284212]
[1641997600496,2.86188411,3364.5,3363.8,5.10984678]
[1641997600700,0.00284212,3364.4,3363.8,5.10984678]
[1641997601135,2.25341815,3363.9,3363.8,5.10984678]
[1641997601538,0.6,3363.9,3363.8,5.10984678]
[1641997601936,0.3022737,3364.3,3363.8,5.10984678]
[1641997602236,0.06393842,3364.2,3363.8,5.10984678]
[1641997602437,0.06393842,3364.2,3363.8,4.21679633]
[1641997602635,0.05151809,3364.0,3363.8,4.21679633]
[1641997602835,0.00113685,3364.1,3363.8,4.21679633]
[1641997603036,0.00170527,3364.2,3363.8,4.21679633]
[1641997603237,0.0873217,3364.1,3363.8,4.21679633]
[1641997603438,0.00113685,3364.1,3363.8,4.21679633]
[1641997604639,0.00113685,3364.1,3363.9,0.01063621]
[1641997604887,2.02092995,3364.0,3363.8,4.21679633]
[1641997605081,2.62092995,3364.0,3363.8,3.32374516]
[1641997606285,1.3527459,3363.9,3363.8,3.32374516]
[1641997606486,0.6,3364.0,3363.8,3.32374516]
[1641997606890,0.3,3364.0,3363.8,3.32374516]
[1641997607387,1.7572028,3364.0,3363.8,3.32374516]
[1641997607988,1.7572028,3364.0,3363.8,2.43057502]
[1641997608189,2.1192028,3364.0,3363.8,2.43057502]
[1641997609632,0.362,3364.0,3363.8,2.43057502]
[1641997609833,0.8932,3363.9,3363.8,2.43057502]
[1641997610436,0.8932,3363.9,3363.8,2.94270168]
[1641997611238,0.8932,3363.9,3363.8,3.94270168]
[1641997611441,0.8932,3363.9,3363.8,2.94270168]
[1641997611639,1.1932,3363.9,3363.8,2.94270168]
[1641997612704,1.1932,3363.9,3363.8,2.04946472]
[1641997612904,1.1932,3363.9,3363.8,2.37327315]
[1641997615211,0.8932,3363.9,3363.8,2.37327315]
[1641997616147,0.8932,3363.9,3363.8,1.48031768]
[1641997617358,1.78611827,3363.9,3363.8,1.48031768]
[1641997617555,1.1932,3363.9,3363.8,1.48031768]
[1641997620389,1.1932,3363.9,3363.8,0.58723461]
[1641997622994,1.1932,3363.9,3363.4,0.83939907]
[1641997623197,1.1932,3363.9,3363.8,6.0]
[1641997624443,0.8932,3363.9,3363.8,6.0]
[1641997625243,0.8932,3363.9,3363.8,7.0]
[1641997625841,1.1932,3363.9,3363.8,7.0]
[1641997626043,0.8932,3363.9,3363.8,6.10706047]
[1641997626745,0.8932,3363.9,3363.8,5.10706047]
[1641997627154,1.1932,3363.9,3363.8,5.10706047]
[1641997629594,3.90879165,3363.9,3363.8,5.10706047]
[1641997629792,3.90879165,3363.9,3363.8,4.10710865]
[1641997629793,8.98305904,3363.9,3363.8,4.10710865]
[1641997629992,0.0508304,3363.8,3363.5,0.00227369]
[1641997630195,0.8932,3363.7,3363.5,0.00227369]
[1641997630494,5.0432,3363.6,3363.5,0.00227369]
[1641997630693,0.8932,3363.6,3363.5,0.00227369]
[1641997630893,0.8932,3363.6,3363.4,6.0]
[1641997630894,8.84092631,3363.5,3363.4,6.0]
[1641997631340,8.1432,3363.5,3363.4,6.0]
[1641997631541,8.1432,3363.5,3363.4,5.10695946]
[1641997632141,1.1932,3363.5,3363.4,5.10695946]
[1641997635293,1.93666,3363.5,3363.4,5.10695946]
[1641997635994,1.1932,3363.5,3363.4,5.10695946]
[1641997636198,6.2432,3363.5,3363.4,4.21359182]
[1641997636391,1.1932,3363.5,3363.4,4.21359182]
[1641997637594,4.9432,3363.5,3363.4,3.32020024]
[1641997637798,1.1932,3363.5,3363.4,3.32020024]
[1641997639045,4.1432,3363.5,3363.4,3.32020024]
[1641997639443,1.1932,3363.5,3363.4,3.32020024]
[1641997639943,4.3932,3363.5,3363.4,3.32020024]
[1641997641548,4.3932,3363.5,3363.4,2.42683452]
[1641997641549,8.3432,3363.5,3363.4,2.42683452]
[1641997641748,4.3932,3363.5,3363.4,2.42683452]
[1641997641948,1.1932,3363.5,3363.4,2.42683452]
[1641997643002,4.9932,3363.5,3363.4,2.42683452]
[1641997643396,5.27106446,3363.5,3363.4,2.42683452]
[1641997643597,8.63306446,3363.5,3363.4,2.42683452]
[1641997644197,8.63306446,3363.5,3363.4,1.42710821]
[1641997644597,8.63306446,3363.5,3363.4,1.18710821]
[1641997644997,8.63306446,3363.5,3363.4,0.42710821]
[1641997645401,8.63306446,3363.5,3363.4,0.18710821]
[1641997645600,0.8932,3362.8,3362.4,1.1776]
[1641997645798,7.92289179,3363.4,3363.1,3.73244007]
[1641997645799,2.2304502,3363.3,3363.1,3.73244007]
[1641997645998,1.45189256,3363.2,3363.1,3.73244007]
[1641997646234,1.48696,3363.3,3363.1,3.73244007]
[1641997646437,1.48696,3363.3,3363.1,2.84137273]
[1641997646638,1.48696,3363.3,3363.2,0.00170527]
[1641997647239,1.79066181,3363.3,3363.2,0.00170527]
[1641997647644,1.32133446,3363.5,3363.1,1.94738345]
[1641997648043,0.00113684,3363.4,3363.1,1.94738345]
[1641997648444,0.00113684,3363.4,3363.1,2.69072345]
[1641997649545,0.74450684,3363.4,3363.1,1.94738345]
[1641997650295,0.0450413,3363.3,3363.1,1.94738345]
[1641997650494,0.74450684,3363.4,3363.1,1.94738345]
[1641997651090,2.15633453,3363.3,3363.1,1.05399453]
[1641997651294,2.1137858,3363.3,3363.1,1.05399453]
[1641997652296,2.1137858,3363.3,3363.1,0.16060561]
[1641997653097,5.1137858,3363.3,3363.1,0.16060561]
[1641997653298,5.8572284,3363.3,3363.1,0.16060561]
[1641997653753,4.2,3363.2,3363.1,0.6692383]
[1641997653953,7.3441084,3363.3,3363.1,0.6692383]
[1641997654961,3.0,3363.3,3363.1,0.6692383]
[1641997655961,3.0,3363.3,3363.2,4.44780486]
[1641997656167,3.0,3363.3,3363.2,2.48633]
[1641997657598,3.0,3363.3,3363.2,1.48633]
[1641997657996,3.3,3363.3,3363.2,1.48633]
[1641997658597,3.3,3363.3,3363.2,3.75294452]
[1641997659397,3.3,3363.3,3363.2,4.75294452]
[1641997660903,3.3,3363.3,3363.2,3.85982157]
[1641997661144,3.3,3363.3,3363.2,3.26661452]
[1641997662345,3.3,3363.3,3363.2,1.0]
[1641997662746,3.3,3363.3,3363.1,1.4124883]
[1641997664548,3.3,3363.3,3363.2,2.05906632]
[1641997664904,3.3,3363.3,3363.1,1.4124883]
[1641997665096,3.3,3363.3,3363.1,0.6692383]
[1641997665897,5.91210875,3363.2,3363.1,0.6692383]
[1641997666098,4.00026059,3363.2,3363.1,0.6692383]
[1641997666296,0.22392018,3362.9,3362.4,1.1398985]
[1641997666503,2.76736018,3363.1,3362.4,1.1398985]
[1641997666695,2.76736018,3363.1,3362.5,0.00397897]
[1641997667499,0.74349,3362.9,3362.5,0.00397897]
[1641997667698,0.74349,3362.9,3362.4,0.00454739]
[1641997667903,0.3,3362.8,3362.3,0.00511581]
[1641997668102,0.3,3362.8,3362.0,0.00682108]
[1641997668302,0.3,3362.8,3362.0,1.43205994]
[1641997668501,1.48711,3362.9,3362.0,1.43205994]
[1641997668745,0.3,3362.4,3362.1,2.25916182]
[1641997669149,0.3,3362.6,3362.2,0.00568424]
[1641997669546,0.74355,3362.5,3362.2,0.00568424]
[1641997669947,0.3,3362.4,3362.2,0.00568424]
[1641997671147,0.3,3362.4,3362.1,0.00625266]
[1641997671547,0.3,3362.4,3361.9,0.4736]
[1641997671752,0.74470684,3362.3,3361.9,1.21714]
[1641997671956,0.00113684,3362.3,3361.9,3.49181322]
[1641997672409,0.00113684,3362.3,3361.9,1.21714]
[1641997672603,0.00113684,3362.3,3362.0,1.31206705]
[1641997672806,0.00113684,3362.3,3362.1,0.79284109]
[1641997673006,0.00113684,3362.3,3362.1,0.74348]
[1641997673408,0.00113684,3362.3,3362.1,2.32012766]
[1641997673606,2.23887976,3363.6,3363.4,2.32406597]
[1641997673807,2.23887976,3363.6,3362.7,0.7802]
[1641997674006,0.00909478,3363.9,3363.2,3.35]
[1641997674207,0.00909478,3363.9,3363.1,2.24323]
[1641997674409,6.11,3365.4,3363.1,2.24323]
[1641997674410,0.00852636,3363.8,3363.3,0.7432]
[1641997674608,0.00852636,3363.8,3363.5,1.41388571]
[1641997674814,1.32957254,3364.1,3363.8,1.5]
[1641997675311,3.82192,3364.4,3363.8,1.5]
[1641997675312,0.7431953,3363.9,3363.8,1.5]
[1641997675512,0.7431953,3363.9,3363.8,0.60651873]
[1641997675711,0.75229008,3363.9,3363.8,0.60651873]
[1641997675911,0.00909478,3363.9,3363.8,0.60651873]
[1641997676553,0.00909478,3363.9,3363.8,7.1447187]
[1641997676753,0.00909478,3363.9,3363.8,8.28291867]
[1641997676956,0.00909478,3363.9,3363.8,7.28291867]
[1641997678254,0.00909478,3363.9,3363.8,1.88291867]
[1641997678653,1.39195723,3365.0,3364.4,1.51851391]
[1641997678953,0.00511581,3364.8,3364.6,1.5]
[1641997679256,0.00454739,3364.7,3364.6,1.5]
[1641997679756,0.00454739,3364.7,3364.6,3.2161468]
[1641997680194,0.00454739,3364.7,3364.6,3.9591068]
[1641997680396,0.00454739,3364.7,3364.6,2.32319133]
[1641997680593,0.7429553,3364.8,3364.6,2.32319133]
[1641997681195,0.7429553,3364.8,3364.6,0.60704453]
[1641997682296,1.38398354,3364.7,3364.6,0.60704453]
[1641997683401,8.23398354,3364.7,3364.6,0.60704453]
[1641997683839,1.38398354,3364.7,3364.6,0.60704453]
[1641997684040,1.0429553,3364.8,3364.6,0.60704453]
[1641997684442,1.0429553,3364.8,3364.6,2.38087831]
[1641997684745,3.0,3364.7,3364.6,2.3475504]
[1641997684952,3.0,3364.7,3364.6,8.3475504]
[1641997684953,2.2212,3364.7,3364.6,8.3475504]
[1641997685142,2.2212,3364.7,3364.6,10.52524805]
[1641997685143,0.9193,3364.7,3364.6,10.52524805]
[1641997685544,0.00170527,3365.0,3364.7,6.7]
[1641997685545,5.27e-06,3365.0,3364.7,6.7]
[1641997685743,5.27e-06,3365.0,3364.8,0.74281]
[1641997686044,5.27e-06,3365.0,3364.8,1.74281]
[1641997686842,5.27e-06,3365.0,3364.8,0.74281]
[1641997687046,5.27e-06,3365.0,3364.6,6.74519842]
[1641997687491,0.30000527,3365.0,3364.7,0.0017]
[1641997688096,0.30000527,3365.0,3364.8,1.29552818]
[1641997688297,2.54066457,3365.0,3364.8,1.29552818]
[1641997688497,2.54066457,3365.0,3364.7,0.0017]
[1641997688698,0.30000527,3365.0,3364.7,0.0017]
[1641997688898,0.30000527,3365.0,3364.8,0.74289]
[1641997689098,5.27e-06,3365.0,3364.8,0.74289]
[1641997690100,5.27e-06,3365.0,3364.7,1.0017]
[1641997690300,5.27e-06,3365.0,3364.6,5.10894914]
[1641997690301,1.71905647,3365.0,3364.6,5.10894914]
[1641997690509,0.74415685,3364.9,3364.6,5.10894914]
[1641997691943,0.00113685,3364.9,3364.6,5.10894914]
[1641997692344,0.00113685,3364.9,3364.7,0.04992131]
[1641997692549,0.00113685,3364.9,3364.6,5.10894914]
[1641997692948,0.00113685,3364.9,3364.6,4.21612388]
[1641997693550,0.01272806,3364.8,3364.6,4.21612388]
[1641997693749,1.49903826,3364.8,3364.6,4.21612388]
[1641997693949,2.3200373,3364.8,3364.6,4.21612388]
[1641997694153,0.3,3364.7,3364.6,4.21612388]
[1641997694757,8.012,3364.7,3364.6,4.21612388]
[1641997695004,8.012,3364.7,3363.3,0.27639994]
[1641997695207,1.48641,3364.6,3364.1,6.0]
[1641997695506,0.6,3364.4,3364.1,6.0]
[1641997695704,8.24282674,3364.2,3364.1,6.0]
[1641997695908,9.39774996,3364.2,3364.1,5.00010821]
[1641997696104,11.09707123,3364.2,3364.1,5.00351875]
[1641997696504,11.09707123,3364.2,3364.1,4.00351875]
[1641997696905,12.09707123,3364.2,3364.1,3.00351875]
[1641997697106,3.74707123,3364.2,3364.1,3.00351875]
[1641997697907,3.74707123,3364.2,3364.1,2.43551875]
[1641997699244,1.69932127,3364.2,3364.1,2.43551875]
[1641997699445,0.6,3364.2,3364.1,2.43551875]
[1641997699645,0.3,3364.2,3364.1,2.43551875]
[1641997700046,1.0431298,3364.5,3364.1,1.542324]
[1641997700446,1.3431298,3364.5,3364.2,0.00284212]
[1641997701648,2.0862598,3364.5,3364.2,0.00284212]
[1641997701848,2.0862598,3364.5,3364.3,2.30674318]
[1641997702049,0.00113685,3364.9,3364.3,2.30674318]